[Event "Titled Tuesday Blitz January 03 Late 2023"]
[White "Roman, Rodrigo"]
[Black "Souza, Gustavo Horokoski De"]
[WhiteFideId "3701220"]
[BlackFideId "2146584"]
[WhiteElo "2058"]
[BlackElo "1943"]
[Result "1-0"]
[Round "09"]
[TimeControl "180+2"]
[Date "2023.01.03"]
[WhiteClock "0:01:18"]
[BlackClock "0:00:07"]

1. Nf3 {[%clk 0:02:54]}  Nf6 {[%clk 0:02:58]} 2. g3 {[%clk 0:02:55]}  g6 {[%clk 0:02:57]} 3. Bg2 {[%clk 0:02:56]}  Bg7 {[%clk 0:02:58]} 4. O-O {[%clk 0:02:56]}  O-O {[%clk 0:02:57]} 5. d4 {[%clk 0:02:53]}  d6 {[%clk 0:02:54]} 6. c4 {[%clk 0:02:54]}  c5 {[%clk 0:02:54]} 7. d5 {[%clk 0:02:53]}  e6 {[%clk 0:02:50]} 8. Nc3 {[%clk 0:02:51]}  exd5 {[%clk 0:02:50]} 9. Nxd5 {[%clk 0:02:52]}  Nxd5 {[%clk 0:02:47]} 10. Qxd5 {[%clk 0:02:52]}  Nc6 {[%clk 0:02:46]} 11. Bg5 {[%clk 0:02:47]}  Qc7 {[%clk 0:02:37]} 12. Bf4 {[%clk 0:02:44]}  Ne5 {[%clk 0:02:22]} 13. Nxe5 {[%clk 0:02:35]}  dxe5 {[%clk 0:02:21]} 14. Be3 {[%clk 0:02:35]}  Be6 {[%clk 0:02:20]} 15. Qxb7 {[%clk 0:02:35]}  Qxb7 {[%clk 0:02:06]} 16. Bxb7 {[%clk 0:02:36]}  Rab8 {[%clk 0:02:06]} 17. Bd5 {[%clk 0:02:28]}  Rxb2 {[%clk 0:02:05]} 18. Bxe6 {[%clk 0:02:26]}  fxe6 {[%clk 0:02:04]} 19. Bxc5 {[%clk 0:02:23]}  Rc8 {[%clk 0:02:02]} 20. Bxa7 {[%clk 0:02:23]}  Rxc4 {[%clk 0:02:02]} 21. a4 {[%clk 0:02:13]}  Rb7 {[%clk 0:01:34]} 22. Be3 {[%clk 0:02:12]}  e4 {[%clk 0:01:24]} 23. Ra2 {[%clk 0:02:11]}  Bd4 {[%clk 0:01:24]} 24. Bxd4 {[%clk 0:02:12]}  Rxd4 {[%clk 0:01:25]} 25. a5 {[%clk 0:02:12]}  Ra7 {[%clk 0:01:24]} 26. a6 {[%clk 0:02:12]}  Rd6 {[%clk 0:01:23]} 27. Rfa1 {[%clk 0:02:12]}  Kf7 {[%clk 0:01:23]} 28. Ra4 {[%clk 0:02:11]}  Kf6 {[%clk 0:01:22]} 29. Kg2 {[%clk 0:02:07]}  Kf5 {[%clk 0:01:18]} 30. e3 {[%clk 0:02:06]}  h5 {[%clk 0:01:15]} 31. h3 {[%clk 0:02:06]}  e5 {[%clk 0:01:15]} 32. Ra5 {[%clk 0:02:05]}  Rc6 {[%clk 0:01:13]} 33. R1a4 {[%clk 0:02:02]}  Rf6 {[%clk 0:01:06]} 34. g4+ {[%clk 0:01:48]}  hxg4 {[%clk 0:00:57]} 35. hxg4+ {[%clk 0:01:47]}  Kxg4 {[%clk 0:00:57]} 36. Rxe5 {[%clk 0:01:48]}  g5 {[%clk 0:00:50]} 37. Rexe4+ {[%clk 0:01:44]}  Kh5 {[%clk 0:00:48]} 38. Re5 {[%clk 0:01:34]}  Raxa6 {[%clk 0:00:47]} 39. Rxa6 {[%clk 0:01:34]}  Rxa6 {[%clk 0:00:46]} 40. f4 {[%clk 0:01:32]}  Rg6 {[%clk 0:00:32]} 41. Kf3 {[%clk 0:01:31]}  Kh4 {[%clk 0:00:20]} 42. Rxg5 {[%clk 0:01:31]}  Ra6 {[%clk 0:00:11]} 43. Rg8 {[%clk 0:01:28]}  Kh5 {[%clk 0:00:10]} 44. f5 {[%clk 0:01:28]}  Kh6 {[%clk 0:00:10]} 45. Rg6+ {[%clk 0:01:18]}  Rxg6 {[%clk 0:00:10]} 46. fxg6 {[%clk 0:01:19]}  Kxg6 {[%clk 0:00:09]} 47. Ke4 {[%clk 0:01:20]}  Kf6 {[%clk 0:00:06]} 48. Kd5 {[%clk 0:01:20]}  Kf7 {[%clk 0:00:07]} 49. Kd6 {[%clk 0:01:20]}  Kf8 {[%clk 0:00:06]} 50. e4 {[%clk 0:01:18]}  Ke8 {[%clk 0:00:07]} 51. Ke6 {[%clk 0:01:18]}  Kf8 {[%clk 0:00:07]} 52. Kd7 {[%clk 0:01:18]} 1-0


[Site "https://www.chess.com"]

[Event "Titled Tuesday Blitz January 03 Late 2023"]
[White "Liu, Kelsey"]
[Black "Tamarozi, Isabelle"]
[WhiteFideId "30944481"]
[BlackFideId "2132400"]
[WhiteElo "2065"]
[BlackElo "1982"]
[Result "0-1"]
[Round "09"]
[TimeControl "180+2"]
[Date "2023.01.03"]
[WhiteClock "0:01:32"]
[BlackClock "0:00:40"]

1. e4 {[%clk 0:03:00]}  c5 {[%clk 0:02:45]} 2. Nf3 {[%clk 0:03:01]}  Nc6 {[%clk 0:02:44]} 3. Bb5 {[%clk 0:03:00]}  g6 {[%clk 0:02:44]} 4. O-O {[%clk 0:02:59]}  Bg7 {[%clk 0:02:44]} 5. c3 {[%clk 0:02:59]}  Nf6 {[%clk 0:02:42]} 6. Re1 {[%clk 0:02:58]}  O-O {[%clk 0:02:40]} 7. d4 {[%clk 0:02:56]}  cxd4 {[%clk 0:02:39]} 8. cxd4 {[%clk 0:02:57]}  d5 {[%clk 0:02:39]} 9. e5 {[%clk 0:02:57]}  Ne4 {[%clk 0:02:39]} 10. Nc3 {[%clk 0:02:33]}  Nxc3 {[%clk 0:02:34]} 11. bxc3 {[%clk 0:02:34]}  Qa5 {[%clk 0:02:34]} 12. Qb3 {[%clk 0:02:31]}  Bg4 {[%clk 0:02:21]} 13. Re3 {[%clk 0:02:17]}  Bxf3 {[%clk 0:02:04]} 14. Rxf3 {[%clk 0:02:18]}  f6 {[%clk 0:01:50]} 15. Qxd5+ {[%clk 0:02:13]}  Kh8 {[%clk 0:01:49]} 16. exf6 {[%clk 0:02:04]}  Rxf6 {[%clk 0:01:46]} 17. Bxc6 {[%clk 0:02:02]}  Qb6 {[%clk 0:01:24]} 18. Rxf6 {[%clk 0:01:50]}  Bxf6 {[%clk 0:01:18]} 19. Ba4 {[%clk 0:01:37]}  Rd8 {[%clk 0:01:11]} 20. Qf3 {[%clk 0:01:34]}  Qa5 {[%clk 0:01:02]} 21. Bb3 {[%clk 0:01:32]}  Bxd4 {[%clk 0:00:41]} 22. cxd4 {[%clk 0:01:32]}  Qe1# {[%clk 0:00:40]} 0-1


[Site "https://www.chess.com"]

[Event "Titled Tuesday Blitz January 03 Late 2023"]
[White "Savic, Miroslav"]
[Black "Jenkins, Drake"]
[WhiteFideId "14508494"]
[BlackFideId "2022397"]
[WhiteElo "2167"]
[BlackElo "2130"]
[Result "0-1"]
[Round "09"]
[TimeControl "180+2"]
[Date "2023.01.03"]
[WhiteClock "0:00:03"]
[BlackClock "0:00:12"]

1. Nf3 {[%clk 0:02:40]}  Nf6 {[%clk 0:02:58]} 2. c4 {[%clk 0:02:41]}  c5 {[%clk 0:02:57]} 3. Nc3 {[%clk 0:02:42]}  d5 {[%clk 0:02:58]} 4. g3 {[%clk 0:02:42]}  d4 {[%clk 0:02:57]} 5. Na4 {[%clk 0:02:38]}  Qa5 {[%clk 0:02:46]} 6. b3 {[%clk 0:02:31]}  Bd7 {[%clk 0:02:44]} 7. Nb2 {[%clk 0:02:30]}  Nc6 {[%clk 0:02:43]} 8. Bg2 {[%clk 0:02:29]}  e5 {[%clk 0:02:42]} 9. O-O {[%clk 0:02:28]}  h6 {[%clk 0:02:28]} 10. d3 {[%clk 0:02:26]}  Bd6 {[%clk 0:02:11]} 11. e3 {[%clk 0:02:11]}  dxe3 {[%clk 0:02:08]} 12. fxe3 {[%clk 0:02:08]}  Rd8 {[%clk 0:02:03]} 13. Kh1 {[%clk 0:01:56]}  O-O {[%clk 0:02:02]} 14. Bd2 {[%clk 0:01:52]}  Qc7 {[%clk 0:01:59]} 15. Bc3 {[%clk 0:01:52]}  Ng4 {[%clk 0:01:36]} 16. Qe2 {[%clk 0:01:46]}  e4 {[%clk 0:01:21]} 17. dxe4 {[%clk 0:01:38]}  Nge5 {[%clk 0:01:20]} 18. Nh4 {[%clk 0:01:32]}  Bg4 {[%clk 0:01:13]} 19. Qc2 {[%clk 0:01:28]}  g6 {[%clk 0:00:38]} 20. h3 {[%clk 0:01:12]}  Bc8 {[%clk 0:00:37]} 21. Rad1 {[%clk 0:01:11]}  Nb4 {[%clk 0:00:35]} 22. Bxb4 {[%clk 0:01:09]}  cxb4 {[%clk 0:00:36]} 23. Rd5 {[%clk 0:00:36]}  Be6 {[%clk 0:00:34]} 24. g4 {[%clk 0:00:26]}  Bxd5 {[%clk 0:00:27]} 25. exd5 {[%clk 0:00:25]}  b5 {[%clk 0:00:27]} 26. Be4 {[%clk 0:00:21]}  Kg7 {[%clk 0:00:22]} 27. Qf2 {[%clk 0:00:16]}  Qe7 {[%clk 0:00:19]} 28. cxb5 {[%clk 0:00:13]}  Qg5 {[%clk 0:00:13]} 29. Nc4 {[%clk 0:00:09]}  Nxc4 {[%clk 0:00:12]} 30. bxc4 {[%clk 0:00:08]}  Rde8 {[%clk 0:00:12]} 31. Qf3 {[%clk 0:00:06]}  Qe5 {[%clk 0:00:12]} 32. Bc2 {[%clk 0:00:03]}  Qh2# {[%clk 0:00:12]} 0-1


[Site "https://www.chess.com"]

[Event "Titled Tuesday Blitz January 03 Late 2023"]
[White "Lutz, Igor Oscar"]
[Black "Clawitter, Craig"]
[WhiteFideId "2110806"]
[BlackFideId "2023105"]
[WhiteElo "1969"]
[BlackElo "2050"]
[Result "0-1"]
[Round "09"]
[TimeControl "180+2"]
[Date "2023.01.03"]
[WhiteClock "0:00:16"]
[BlackClock "0:00:39"]

1. d4 {[%clk 0:02:56]}  e6 {[%clk 0:03:00]} 2. c4 {[%clk 0:02:56]}  Nf6 {[%clk 0:03:00]} 3. Nf3 {[%clk 0:02:56]}  d5 {[%clk 0:03:01]} 4. g3 {[%clk 0:02:56]}  Be7 {[%clk 0:02:59]} 5. Bg2 {[%clk 0:02:57]}  O-O {[%clk 0:03:00]} 6. O-O {[%clk 0:02:57]}  dxc4 {[%clk 0:03:00]} 7. Nbd2 {[%clk 0:02:58]}  b5 {[%clk 0:02:58]} 8. a4 {[%clk 0:02:54]}  c6 {[%clk 0:02:52]} 9. axb5 {[%clk 0:02:53]}  cxb5 {[%clk 0:02:50]} 10. Ne5 {[%clk 0:02:52]}  Nd5 {[%clk 0:02:46]} 11. Qc2 {[%clk 0:02:32]}  Bb7 {[%clk 0:02:38]} 12. Be4 {[%clk 0:02:23]}  g6 {[%clk 0:02:18]} 13. Nxg6 {[%clk 0:02:19]}  fxg6 {[%clk 0:01:59]} 14. Bxg6 {[%clk 0:02:18]}  Nf6 {[%clk 0:01:59]} 15. Bxh7+ {[%clk 0:01:09]}  Nxh7 {[%clk 0:01:56]} 16. Qg6+ {[%clk 0:01:08]}  Kh8 {[%clk 0:01:55]} 17. Ne4 {[%clk 0:00:41]}  Bxe4 {[%clk 0:01:27]} 18. Qxe4 {[%clk 0:00:38]}  Qd5 {[%clk 0:01:27]} 19. Qg6 {[%clk 0:00:29]}  Qf5 {[%clk 0:01:16]} 20. Qh6 {[%clk 0:00:20]}  Nc6 {[%clk 0:01:07]} 21. e4 {[%clk 0:00:19]}  Qxe4 {[%clk 0:00:55]} 22. Ra6 {[%clk 0:00:19]}  Nxd4 {[%clk 0:00:48]} 23. Be3 {[%clk 0:00:16]}  Ne2# {[%clk 0:00:39]} 0-1


[Site "https://www.chess.com"]

[Event "Titled Tuesday Blitz January 03 Late 2023"]
[White "Gardezi, Arsal"]
[Black "Cruz Gomez, Miguel Angel"]
[WhiteFideId "30949521"]
[BlackFideId "5137160"]
[WhiteElo "2093"]
[BlackElo "1950"]
[Result "1-0"]
[Round "09"]
[TimeControl "180+2"]
[Date "2023.01.03"]
[WhiteClock "0:00:12"]
[BlackClock "0:00:58"]

1. e4 {[%clk 0:03:00]}  c5 {[%clk 0:03:00]} 2. Nf3 {[%clk 0:02:54]}  e6 {[%clk 0:02:59]} 3. d4 {[%clk 0:02:51]}  cxd4 {[%clk 0:03:00]} 4. Nxd4 {[%clk 0:02:51]}  Nc6 {[%clk 0:03:00]} 5. Nxc6 {[%clk 0:02:50]}  bxc6 {[%clk 0:02:59]} 6. Nc3 {[%clk 0:02:50]}  d5 {[%clk 0:02:59]} 7. exd5 {[%clk 0:02:50]}  cxd5 {[%clk 0:03:00]} 8. Bd3 {[%clk 0:02:51]}  Nf6 {[%clk 0:03:00]} 9. O-O {[%clk 0:02:52]}  Be7 {[%clk 0:03:01]} 10. Bf4 {[%clk 0:02:51]}  O-O {[%clk 0:02:58]} 11. Re1 {[%clk 0:02:50]}  Bd7 {[%clk 0:02:57]} 12. Qf3 {[%clk 0:02:42]}  Qb6 {[%clk 0:02:54]} 13. Be5 {[%clk 0:02:38]}  Rac8 {[%clk 0:02:45]} 14. Qh3 {[%clk 0:02:34]}  g6 {[%clk 0:02:38]} 15. Qf3 {[%clk 0:02:22]}  Ne8 {[%clk 0:02:34]} 16. Ne2 {[%clk 0:02:03]}  Bd6 {[%clk 0:02:32]} 17. Bd4 {[%clk 0:02:00]}  Bc5 {[%clk 0:02:32]} 18. Qf4 {[%clk 0:01:53]}  Bxd4 {[%clk 0:02:29]} 19. Nxd4 {[%clk 0:01:50]}  Qd6 {[%clk 0:02:25]} 20. Qh4 {[%clk 0:01:46]}  e5 {[%clk 0:02:17]} 21. Nf3 {[%clk 0:01:43]}  f6 {[%clk 0:02:14]} 22. Rad1 {[%clk 0:01:41]}  Be6 {[%clk 0:02:00]} 23. c4 {[%clk 0:00:58]}  d4 {[%clk 0:01:52]} 24. Rc1 {[%clk 0:00:58]}  Bf7 {[%clk 0:01:31]} 25. Qg3 {[%clk 0:00:44]}  Nc7 {[%clk 0:01:26]} 26. Nd2 {[%clk 0:00:43]}  Ne6 {[%clk 0:01:09]} 27. Ne4 {[%clk 0:00:36]}  Qd8 {[%clk 0:01:10]} 28. c5 {[%clk 0:00:14]}  Nf4 {[%clk 0:01:08]} 29. Bc4 {[%clk 0:00:12]}  Bxc4 {[%clk 0:01:07]} 30. Rxc4 {[%clk 0:00:13]}  f5 {[%clk 0:01:06]} 31. Nd6 {[%clk 0:00:13]}  Rxc5 {[%clk 0:01:06]} 32. Rxc5 {[%clk 0:00:13]}  Qxd6 {[%clk 0:01:07]} 33. Qb3+ {[%clk 0:00:13]}  Kg7 {[%clk 0:01:05]} 34. Rcxe5 {[%clk 0:00:14]}  d3 {[%clk 0:01:04]} 35. Re7+ {[%clk 0:00:14]}  Kh6 {[%clk 0:01:02]} 36. Qc3 {[%clk 0:00:14]}  Qf6 {[%clk 0:01:00]} 37. Qc7 {[%clk 0:00:13]}  Ne2+ {[%clk 0:00:58]} 38. R1xe2 {[%clk 0:00:11]}  dxe2 {[%clk 0:00:59]} 39. Rxh7+ {[%clk 0:00:12]}  Kg5 {[%clk 0:00:58]} 40. Qg3# {[%clk 0:00:12]} 1-0


[Site "https://www.chess.com"]

[Event "Titled Tuesday Blitz January 03 Late 2023"]
[White "Simonovic, Miroslav"]
[Black "Vargas, Mauricio"]
[WhiteFideId "919152"]
[BlackFideId "4404572"]
[WhiteElo "2082"]
[BlackElo "2035"]
[Result "1-0"]
[Round "09"]
[TimeControl "180+2"]
[Date "2023.01.03"]
[WhiteClock "0:00:18"]
[BlackClock "0:00:02"]

1. d4 {[%clk 0:03:00]}  d5 {[%clk 0:02:59]} 2. Bg5 {[%clk 0:03:01]}  h5 {[%clk 0:02:46]} 3. e3 {[%clk 0:03:00]}  f6 {[%clk 0:02:45]} 4. Bh4 {[%clk 0:02:59]}  g5 {[%clk 0:02:44]} 5. Bg3 {[%clk 0:02:59]}  h4 {[%clk 0:02:43]} 6. Bb5+ {[%clk 0:02:49]}  Nd7 {[%clk 0:02:32]} 7. Qd3 {[%clk 0:02:43]}  Nh6 {[%clk 0:02:21]} 8. Qg6+ {[%clk 0:02:40]}  Nf7 {[%clk 0:02:21]} 9. Be2 {[%clk 0:02:19]}  hxg3 {[%clk 0:02:20]} 10. Bh5 {[%clk 0:02:16]}  Rxh5 {[%clk 0:02:12]} 11. Qxh5 {[%clk 0:02:17]}  gxf2+ {[%clk 0:02:11]} 12. Kxf2 {[%clk 0:02:18]}  Nb6 {[%clk 0:02:05]} 13. h4 {[%clk 0:02:10]}  Be6 {[%clk 0:01:57]} 14. hxg5 {[%clk 0:02:09]}  fxg5 {[%clk 0:01:57]} 15. Nf3 {[%clk 0:02:10]}  g4 {[%clk 0:01:51]} 16. Ne5 {[%clk 0:01:53]}  Qd6 {[%clk 0:01:47]} 17. Nc3 {[%clk 0:01:46]}  a6 {[%clk 0:01:42]} 18. Qg6 {[%clk 0:01:38]}  g3+ {[%clk 0:01:41]} 19. Ke1 {[%clk 0:01:25]}  O-O-O {[%clk 0:01:08]} 20. Nxf7 {[%clk 0:01:23]}  Bxf7 {[%clk 0:01:03]} 21. Qxf7 {[%clk 0:01:24]}  Nc4 {[%clk 0:01:00]} 22. Ke2 {[%clk 0:01:01]}  Nxb2 {[%clk 0:00:46]} 23. Rh8 {[%clk 0:01:00]}  Bh6 {[%clk 0:00:35]} 24. Rxd8+ {[%clk 0:00:57]}  Qxd8 {[%clk 0:00:34]} 25. Qe6+ {[%clk 0:00:51]}  Qd7 {[%clk 0:00:30]} 26. Qxh6 {[%clk 0:00:50]}  Qg4+ {[%clk 0:00:30]} 27. Ke1 {[%clk 0:00:39]}  Kb8 {[%clk 0:00:27]} 28. Qf8+ {[%clk 0:00:37]}  Ka7 {[%clk 0:00:25]} 29. Qf3 {[%clk 0:00:38]}  Qg6 {[%clk 0:00:15]} 30. Rc1 {[%clk 0:00:33]}  Nc4 {[%clk 0:00:14]} 31. Nxd5 {[%clk 0:00:29]}  e6 {[%clk 0:00:13]} 32. Nf4 {[%clk 0:00:28]}  Qf7 {[%clk 0:00:12]} 33. Qxg3 {[%clk 0:00:25]}  Qe7 {[%clk 0:00:12]} 34. Qf2 {[%clk 0:00:24]}  Qb4+ {[%clk 0:00:12]} 35. Kf1 {[%clk 0:00:24]}  Qb2 {[%clk 0:00:11]} 36. Nd3 {[%clk 0:00:23]}  Qxa2 {[%clk 0:00:11]} 37. Kg1 {[%clk 0:00:23]}  Qa5 {[%clk 0:00:09]} 38. e4 {[%clk 0:00:20]}  Nd6 {[%clk 0:00:08]} 39. d5+ {[%clk 0:00:20]}  b6 {[%clk 0:00:05]} 40. dxe6 {[%clk 0:00:20]}  Nxe4 {[%clk 0:00:04]} 41. Qf4 {[%clk 0:00:18]}  Nd6 {[%clk 0:00:03]} 42. e7 {[%clk 0:00:18]}  Qh5 {[%clk 0:00:02]} 43. Re1 {[%clk 0:00:18]} 1-0


[Site "https://www.chess.com"]

[Event "Titled Tuesday Blitz January 03 Late 2023"]
[White "ajedrez-facil"]
[Black "Oliveira, Tiago Batista"]
[BlackFideId "2108291"]
[WhiteElo "2103"]
[BlackElo "1991"]
[Result "0-1"]
[Round "09"]
[TimeControl "180+2"]
[Date "2023.01.03"]
[WhiteClock "0:01:00"]
[BlackClock "0:00:03"]

1. e4 {[%clk 0:03:00]}  c5 {[%clk 0:02:48]} 2. Nf3 {[%clk 0:03:00]}  d6 {[%clk 0:02:48]} 3. d4 {[%clk 0:03:00]}  cxd4 {[%clk 0:02:48]} 4. Qxd4 {[%clk 0:03:01]}  Nc6 {[%clk 0:02:46]} 5. Bb5 {[%clk 0:03:01]}  Bd7 {[%clk 0:02:45]} 6. Bxc6 {[%clk 0:03:01]}  Bxc6 {[%clk 0:02:44]} 7. Nc3 {[%clk 0:03:02]}  e6 {[%clk 0:02:35]} 8. Bg5 {[%clk 0:03:00]}  Qa5 {[%clk 0:02:29]} 9. O-O {[%clk 0:02:57]}  Qc5 {[%clk 0:02:10]} 10. Rad1 {[%clk 0:02:54]}  Qxd4 {[%clk 0:02:03]} 11. Rxd4 {[%clk 0:02:55]}  h6 {[%clk 0:02:01]} 12. Bh4 {[%clk 0:02:55]}  g5 {[%clk 0:02:01]} 13. Bg3 {[%clk 0:02:55]}  Rd8 {[%clk 0:01:56]} 14. Rfd1 {[%clk 0:02:55]}  Nf6 {[%clk 0:01:50]} 15. Bxd6 {[%clk 0:02:46]}  Bxd6 {[%clk 0:01:47]} 16. Rxd6 {[%clk 0:02:47]}  Rxd6 {[%clk 0:01:46]} 17. Rxd6 {[%clk 0:02:47]}  Nxe4 {[%clk 0:01:46]} 18. Rd3 {[%clk 0:02:32]}  Ke7 {[%clk 0:01:35]} 19. Nd4 {[%clk 0:02:30]}  Nxc3 {[%clk 0:01:26]} 20. Nxc6+ {[%clk 0:02:28]}  bxc6 {[%clk 0:01:26]} 21. Rxc3 {[%clk 0:02:29]}  Rd8 {[%clk 0:01:23]} 22. Kf1 {[%clk 0:02:28]}  Rd6 {[%clk 0:01:20]} 23. Ke2 {[%clk 0:02:24]}  f5 {[%clk 0:01:02]} 24. Rc5 {[%clk 0:02:19]}  Kf6 {[%clk 0:01:01]} 25. b4 {[%clk 0:02:10]}  e5 {[%clk 0:01:00]} 26. c3 {[%clk 0:02:08]}  Ke6 {[%clk 0:00:59]} 27. a4 {[%clk 0:02:07]}  e4 {[%clk 0:00:56]} 28. Ra5 {[%clk 0:01:53]}  Rd7 {[%clk 0:00:54]} 29. Ra6 {[%clk 0:01:52]}  Kd5 {[%clk 0:00:54]} 30. b5 {[%clk 0:01:47]}  cxb5 {[%clk 0:00:50]} 31. axb5 {[%clk 0:01:48]}  Kc4 {[%clk 0:00:48]} 32. b6 {[%clk 0:01:49]}  axb6 {[%clk 0:00:47]} 33. Rxb6 {[%clk 0:01:49]}  Kxc3 {[%clk 0:00:45]} 34. Rxh6 {[%clk 0:01:48]}  Rd2+ {[%clk 0:00:45]} 35. Ke1 {[%clk 0:01:45]}  Rd5 {[%clk 0:00:41]} 36. h3 {[%clk 0:01:42]}  Kd3 {[%clk 0:00:40]} 37. Rg6 {[%clk 0:01:42]}  f4 {[%clk 0:00:41]} 38. Ra6 {[%clk 0:01:38]}  e3 {[%clk 0:00:39]} 39. Ra3+ {[%clk 0:01:38]}  Ke4 {[%clk 0:00:39]} 40. Ra4+ {[%clk 0:01:34]}  Rd4 {[%clk 0:00:38]} 41. Ra5 {[%clk 0:01:31]}  exf2+ {[%clk 0:00:34]} 42. Kxf2 {[%clk 0:01:32]}  Rd2+ {[%clk 0:00:32]} 43. Kf1 {[%clk 0:01:30]}  f3 {[%clk 0:00:20]} 44. Rxg5 {[%clk 0:01:25]}  Rd1+ {[%clk 0:00:10]} 45. Kf2 {[%clk 0:01:25]}  Rd2+ {[%clk 0:00:10]} 46. Kf1 {[%clk 0:01:14]}  Rd1+ {[%clk 0:00:09]} 47. Kf2 {[%clk 0:01:10]}  Rd2+ {[%clk 0:00:09]} 48. Kg1 {[%clk 0:01:11]}  Rd1+ {[%clk 0:00:06]} 49. Kh2 {[%clk 0:01:11]}  f2 {[%clk 0:00:06]} 50. Rg4+ {[%clk 0:01:09]}  Ke3 {[%clk 0:00:06]} 51. Rg8 {[%clk 0:01:06]}  f1=Q {[%clk 0:00:05]} 52. Re8+ {[%clk 0:01:06]}  Kd2 {[%clk 0:00:05]} 53. Rd8+ {[%clk 0:01:06]}  Ke1 {[%clk 0:00:05]} 54. Re8+ {[%clk 0:01:06]}  Kd2 {[%clk 0:00:05]} 55. Rd8+ {[%clk 0:01:06]}  Kc1 {[%clk 0:00:05]} 56. Rxd1+ {[%clk 0:01:04]}  Qxd1 {[%clk 0:00:03]} 57. g4 {[%clk 0:01:05]}  Qf3 {[%clk 0:00:03]} 58. g5 {[%clk 0:01:04]}  Qf2+ {[%clk 0:00:03]} 59. Kh1 {[%clk 0:01:03]}  Qg3 {[%clk 0:00:03]} 60. h4 {[%clk 0:01:01]}  Qxh4+ {[%clk 0:00:03]} 61. Kg2 {[%clk 0:01:00]}  Qxg5+ {[%clk 0:00:03]} 0-1


[Site "https://www.chess.com"]

[Event "Titled Tuesday Blitz January 03 Late 2023"]
[White "Kho, Darrell"]
[Black "Marcolino, Daniel Mattos"]
[WhiteFideId "1019317"]
[BlackFideId "2106841"]
[WhiteElo "2075"]
[BlackElo "2006"]
[Result "1-0"]
[Round "09"]
[TimeControl "180+2"]
[Date "2023.01.03"]
[WhiteClock "0:00:24"]
[BlackClock "0:01:08"]

1. e4 {[%clk 0:03:00]}  e5 {[%clk 0:03:00]} 2. Nf3 {[%clk 0:03:00]}  Nc6 {[%clk 0:03:00]} 3. Nc3 {[%clk 0:03:00]}  Nf6 {[%clk 0:02:59]} 4. d4 {[%clk 0:03:01]}  exd4 {[%clk 0:02:59]} 5. Nxd4 {[%clk 0:03:02]}  Bb4 {[%clk 0:02:54]} 6. Nxc6 {[%clk 0:03:00]}  bxc6 {[%clk 0:02:54]} 7. Bd3 {[%clk 0:02:59]}  O-O {[%clk 0:02:53]} 8. O-O {[%clk 0:02:57]}  d6 {[%clk 0:02:53]} 9. h3 {[%clk 0:02:52]}  Rb8 {[%clk 0:02:40]} 10. Qf3 {[%clk 0:02:51]}  Nd7 {[%clk 0:02:32]} 11. Qg3 {[%clk 0:02:41]}  Re8 {[%clk 0:02:27]} 12. Bg5 {[%clk 0:02:23]}  f6 {[%clk 0:02:20]} 13. Bh6 {[%clk 0:02:19]}  Qe7 {[%clk 0:02:16]} 14. Ne2 {[%clk 0:01:49]}  Ne5 {[%clk 0:02:11]} 15. Nd4 {[%clk 0:01:36]}  Nxd3 {[%clk 0:02:05]} 16. Nxc6 {[%clk 0:01:32]}  Qf7 {[%clk 0:01:40]} 17. Nxb8 {[%clk 0:01:11]}  Nxb2 {[%clk 0:01:38]} 18. Bxg7 {[%clk 0:01:01]}  Qxg7 {[%clk 0:01:36]} 19. Qb3+ {[%clk 0:01:00]}  Be6 {[%clk 0:01:34]} 20. Qxb4 {[%clk 0:01:00]}  Bxh3 {[%clk 0:01:21]} 21. Qb3+ {[%clk 0:00:59]}  Be6 {[%clk 0:01:20]} 22. Qxb2 {[%clk 0:00:57]}  Kh8 {[%clk 0:01:10]} 23. Nc6 {[%clk 0:00:41]}  Bh3 {[%clk 0:01:08]} 24. g3 {[%clk 0:00:41]}  Rxe4 {[%clk 0:01:07]} 25. Qb8+ {[%clk 0:00:36]}  Qg8 {[%clk 0:01:07]} 26. Qxg8+ {[%clk 0:00:35]}  Kxg8 {[%clk 0:01:08]} 27. Rfe1 {[%clk 0:00:33]}  Rc4 {[%clk 0:01:09]} 28. Nxa7 {[%clk 0:00:26]}  Rxc2 {[%clk 0:01:08]} 29. a4 {[%clk 0:00:24]} 1-0


[Site "https://www.chess.com"]

[Event "Titled Tuesday Blitz January 03 Late 2023"]
[White "Kollars, Dmitrij"]
[Black "Dardha, Daniel"]
[WhiteFideId "12909572"]
[BlackFideId "240990"]
[WhiteElo "2607"]
[BlackElo "2631"]
[Result "1/2-1/2"]
[Round "10"]
[TimeControl "180+2"]
[Date "2023.01.03"]
[WhiteClock "0:00:17"]
[BlackClock "0:00:02"]

1. e4 {[%clk 0:02:53]}  e5 {[%clk 0:02:51]} 2. Nf3 {[%clk 0:02:53]}  Nc6 {[%clk 0:02:49]} 3. Nc3 {[%clk 0:02:52]}  Nf6 {[%clk 0:02:49]} 4. d4 {[%clk 0:02:52]}  exd4 {[%clk 0:02:50]} 5. Nxd4 {[%clk 0:02:53]}  Bb4 {[%clk 0:02:50]} 6. Nxc6 {[%clk 0:02:52]}  bxc6 {[%clk 0:02:51]} 7. Bd3 {[%clk 0:02:53]}  d5 {[%clk 0:02:50]} 8. Bd2 {[%clk 0:02:52]}  O-O {[%clk 0:02:50]} 9. O-O {[%clk 0:02:52]}  Bxc3 {[%clk 0:02:46]} 10. Bxc3 {[%clk 0:02:52]}  Nxe4 {[%clk 0:02:46]} 11. Bxe4 {[%clk 0:02:51]}  dxe4 {[%clk 0:02:47]} 12. Qe2 {[%clk 0:02:51]}  Bf5 {[%clk 0:02:37]} 13. Qe3 {[%clk 0:02:42]}  Qd6 {[%clk 0:02:19]} 14. Rad1 {[%clk 0:02:36]}  Qg6 {[%clk 0:02:18]} 15. Rd4 {[%clk 0:02:28]}  Rfd8 {[%clk 0:02:09]} 16. Rfd1 {[%clk 0:02:26]}  Rxd4 {[%clk 0:02:08]} 17. Rxd4 {[%clk 0:02:27]}  h6 {[%clk 0:02:07]} 18. Qg3 {[%clk 0:02:17]}  Qxg3 {[%clk 0:02:01]} 19. hxg3 {[%clk 0:02:18]}  e3 {[%clk 0:01:49]} 20. fxe3 {[%clk 0:02:19]}  Bxc2 {[%clk 0:01:49]} 21. Rc4 {[%clk 0:02:15]}  Re8 {[%clk 0:01:42]} 22. Rxc6 {[%clk 0:02:13]}  Rxe3 {[%clk 0:01:35]} 23. Bd4 {[%clk 0:01:55]}  Re2 {[%clk 0:01:29]} 24. Rxc7 {[%clk 0:01:48]}  Be4 {[%clk 0:01:27]} 25. Bf2 {[%clk 0:01:48]}  a5 {[%clk 0:01:01]} 26. Re7 {[%clk 0:01:47]}  f5 {[%clk 0:00:57]} 27. a4 {[%clk 0:01:08]}  Kf8 {[%clk 0:00:33]} 28. Bc5 {[%clk 0:01:06]}  Rxg2+ {[%clk 0:00:18]} 29. Kf1 {[%clk 0:01:05]}  Rc2 {[%clk 0:00:18]} 30. Bd6 {[%clk 0:00:39]}  Kg8 {[%clk 0:00:10]} 31. Be5 {[%clk 0:00:39]}  g5 {[%clk 0:00:10]} 32. Rg7+ {[%clk 0:00:34]}  Kf8 {[%clk 0:00:10]} 33. Ra7 {[%clk 0:00:35]}  f4 {[%clk 0:00:03]} 34. gxf4 {[%clk 0:00:36]}  g4 {[%clk 0:00:04]} 35. Bd6+ {[%clk 0:00:28]}  Kg8 {[%clk 0:00:03]} 36. Be5 {[%clk 0:00:28]}  Kf8 {[%clk 0:00:01]} 37. Rc7 {[%clk 0:00:18]}  g3 {[%clk 0:00:01]} 38. Rxc2 {[%clk 0:00:18]}  Bxc2 {[%clk 0:00:02]} 39. Kg2 {[%clk 0:00:17]}  Bxa4 {[%clk 0:00:02]} 40. Bc3 {[%clk 0:00:17]}  Bc6+ {[%clk 0:00:02]} 41. Kxg3 {[%clk 0:00:17]}  a4 {[%clk 0:00:02]} 1/2-1/2


[Site "https://www.chess.com"]